Cogmind - Beta 13 @@@ ROGUE MODE // 2024.04.05 @ 22:46:40 Player: Waste Result: Destroyed by G-73 Enforcer with Heavy Laser Performance ------------- Evolutions (9) 4500 Regions Visited (20) 4000 Robots Destroyed (181) 905 Value Destroyed (6878) 6878 Prototype IDs (217) 4340 Alien Tech Used (0) 0 Bonus (4634) 4634 TOTAL SCORE: 25257 Bonus ------- High Alert Combat Kills 698 Follower Combat Kills 396 Entered Garrisons 200 Met Data Miner 300 Used Data Conduit 3000 Acquired ECA 300 Friendly Fire -260 Cogmind --------- Core Integrity 0/1600 Matter 259/300 Energy 99/100 System Corruption 8% Temperature Cool (0) Movement Core (50) Location -1/Access Parts ------- > --- POWER (1) -------- (None) > --- PROPULSION (12) -- (None) > --- UTILITY (8) ------ (None) > --- WEAPON (4) ------- (None) > --- INVENTORY (5) ---- Improved Ion Engine Latent Energy Streamer Nova Cannon Peak State ------------ > --- POWER ------------ Heavy Ion Engine > --- PROPULSION ------- Armored Huge Wheel Armored Huge Wheel > --- UTILITY ---------- Huge Storage Unit Improved Signal Interpreter Makeshift Hacking Suite > --- WEAPON ----------- Latent Energy Streamer Enhanced Autogun Bore Cannon Powered Hammer > --- INVENTORY -------- Improved Ion Engine Neutrino Core Light Treads Light Treads Advanced Treads Improved Heat Sink High-capacity Matter Pod Improved Sensor Array Encrypted Comm Array Makeshift Salvage Targeting Computer Makeshift Cloaking Device Medium Armor Plating Medium Armor Plating Hardened Heavy Armor Plating Improved Light Armor Plating Improved Light Armor Plating Heavy Riot Gun Advanced Plasma Cannon Enhanced Gauss Cannon Heavy Missile Launcher Heavy Missile Launcher [Rating: 57] Favorites ----------- Power Ion Engine Engine Ion Engine Power Core Neutrino Core Propulsion Light Treads Treads Light Treads Leg Aluminum Leg Wheel Armored Huge Wheel Hover Unit Gravmag Array Utility Huge Storage Unit Device Improved Heat Sink Storage Huge Storage Unit Processor Improved Signal Interpreter Hackware Makeshift Hacking Suite Protection Improved Light Armor Plating Weapon Improved Assault Rifle Energy Gun Beam Rifle Energy Cannon Ion Cannon Ballistic Gun Improved Assault Rifle Ballistic Cannon Enhanced Gauss Cannon Launcher Heavy Missile Launcher Impact Weapon Powered Hammer Build | -11 -10 -10 -9 -9 -9 -8 -8 -8 -8 -7 -7 -7 -7 -6 -6 -5 -4 -3 -2 -1 ------- Run | Yrd Mat Min Mat Min Exi Min Mat Gar Mat Fac Low Low Dat Pro Fac Fac Fac Res Res Acc Slots Evolved 18 | . . . 2 . . . 2 . . 2 . . . . 2 2 2 2 2 2 Power . | . . . . . . . . . . . . . . . . . . . . . Propulsion 10 | . . . 2 . . . . . . . . . . . . 2 2 2 2 . Utility 6 | . . . . . . . 2 . . . . . . . 2 . . . . 2 Weapon 2 | . . . . . . . . . . 2 . . . . . . . . . . Parts Attached 142 | . 9 3 12 . 4 2 9 13 18 27 . 17 11 1 3 5 2 . 2 4 Power 9 | . . . 2 . . 1 . 1 2 1 . 1 1 . . . . . . . Engine 7 | . . . 2 . . 1 . . 2 1 . . 1 . . . . . . . Core 2 | . . . . . . . . 1 . . . 1 . . . . . . . . Reactor . | . . . . . . . . . . . . . . . . . . . . . Propulsion 25 | . 2 . 4 . 1 . 3 . 3 3 . 3 2 1 . 2 . . . 1 Treads 17 | . 2 . 4 . 1 . 1 . 3 . . 3 1 1 . 1 . . . . Leg 1 | . . . . . . . . . . . . . 1 . . . . . . . Wheel 5 | . . . . . . . 2 . . 3 . . . . . . . . . . Hover 2 | . . . . . . . . . . . . . . . . 1 . . . 1 Flight . | . . . . . . . . . . . . . . . . . . . . . Utility 41 | . 5 1 1 . 1 1 5 2 3 8 . 3 2 . 3 3 1 . 2 . Device 8 | . . . . . . . 2 1 . 3 . 1 . . . 1 . . . . Storage 5 | . 3 . . . 1 . . . . 1 . . . . . . . . . . Processor 7 | . 1 . 1 . . . . . . 1 . . . . 2 . . . 2 . Hackware 5 | . . . . . . . . 1 . . . . . . 1 2 1 . . . Protection 16 | . 1 1 . . . 1 3 . 3 3 . 2 2 . . . . . . . Artifact . | . . . . . . . . . . . . . . . . . . . . . Weapon 67 | . 2 2 5 . 2 . 1 10 10 15 . 10 6 . . . 1 . . 3 Energy Gun 8 | . 2 2 2 . . . . . . . . 1 1 . . . . . . . Energy Cannon 10 | . . . . . 1 . . 3 . . . 2 1 . . . . . . 3 Ballistic Gun 17 | . . . 3 . 1 . 1 1 5 5 . . . . . . 1 . . . Ballistic Cannon 10 | . . . . . . . . 2 1 2 . 3 2 . . . . . . . Launcher 13 | . . . . . . . . 2 4 3 . 4 . . . . . . . . Special Weapon . | . . . . . . . . . . . . . . . . . . . . . Impact Weapon 9 | . . . . . . . . 2 . 5 . . 2 . . . . . . . Slashing Weapon . | . . . . . . . . . . . . . . . . . . . . . Piercing Weapon . | . . . . . . . . . . . . . . . . . . . . . Special Melee Weapon . | . . . . . . . . . . . . . . . . . . . . . Unidentified Prototypes 3 | . . . 1 . 1 . . . 1 . . . . . . . . . . . Corrupted Parts 2 | . . . . . . . . . . . . . 2 . . . . . . . System Corruption 15 | . . . . . . . . . . . . . 15 . . . . . . . Parts Lost 42 | . . 2 2 . . . 1 . 3 5 2 6 11 . . 3 1 . 4 2 Power 5 | . . . 1 . . . . . . 1 . 1 2 . . . . . . . Propulsion 13 | . . . 1 . . . . . 2 . . 2 4 . . 2 1 . . 1 Utility 13 | . . 1 . . . . 1 . 1 1 1 1 2 . . 1 . . 3 1 Weapon 11 | . . 1 . . . . . . . 3 1 2 3 . . . . . 1 . Highest Loss Streak 6 | . . 1 2 . . . 1 . 1 3 1 5 6 . . 2 1 . 3 1 To Critical Strikes 1 | . . . . . . . . . 1 . . . . . . . . . . . Average Slot Usage (%) 79 | . 100 85 96 100 99 100 89 80 88 83 75 83 45 2 19 29 32 28 17 9 Engine 7 | . 14 14 11 11 11 11 9 3 5 6 7 4 . . . . . . . . Core 1 | . . . . . . . . 5 3 . . 2 1 . . . . . . . Treads 20 | . 19 28 43 44 44 44 20 . 14 1 . 9 6 2 6 5 . . . . Wheel 4 | . . . . . . . 7 18 10 14 15 8 . . . . . . . . Device 2 | . . . . . . . 8 8 8 5 1 . . . . . . . . . Storage 9 | . 14 14 11 11 11 13 9 9 9 7 7 7 7 . . . . . . . Processor 5 | . . . 8 11 10 . . . . 7 7 7 7 . 6 11 10 9 5 5 Hackware 3 | . . . . . . . . 7 9 7 7 7 7 . 5 9 13 14 11 3 Protection 4 | . 13 . . . . 8 16 10 9 1 . 4 . . . . . . . . Energy Gun 6 | . 27 27 18 . . . . . . . . 6 . . . . . . . . Ballistic Gun 9 | . . . 3 22 21 22 18 2 11 22 12 4 . . . . 3 4 . . Ballistic Cannon 1 | . . . . . . . . 3 4 . . 7 4 . . . . . . . Impact Weapon 1 | . . . . . . . . 1 . 4 7 . 6 . . . . . . . Naked Turns 121 | . . . . . . . . . . . . . 4 69 . . . . . 48 Heaviest Build 132 | 14 94 92 91 91 95 96 104 113 118 107 105 132 123 . . . 6 6 6 12 Greatest Support 80 | 20 40 40 80 80 80 80 80 56 56 56 56 62 62 3 3 3 3 3 3 3 Greatest Overweight (x) 32 | . 2 2 1 1 1 1 3 2 4 3 1 2 32 . . . 1 1 1 3 Average Overweight (x) 1 | . . 2 1 1 1 1 1 1 3 1 1 1 9 . . . . 1 . . Largest Inventory Capacity 25 | . 25 25 25 25 25 25 25 25 25 25 25 25 25 5 5 5 5 5 5 5 Average Capacity 22 | . 18 25 25 25 25 25 25 25 25 25 25 25 24 5 5 5 5 5 5 5 Most Carried 25 | . 15 16 25 25 25 24 25 25 25 25 23 23 22 5 5 5 2 2 2 3 Average Carried 19 | . 9 15 18 25 24 23 24 24 24 23 22 20 17 5 5 4 2 2 2 2 Final Capacity 25 | 8 25 25 25 25 25 25 25 25 25 25 25 25 5 5 5 5 5 5 5 5 Final Carried 25 | 6 15 16 25 25 23 24 24 25 25 21 23 18 5 5 5 2 2 2 2 3 Class Distribution -------------------- 70% | Mutant 7% | Commander-Mutant 5% | Hacker-Mutant 5% | Skirmisher 4% | Scavenger-Mutant 3% | Derelict-Tank Dominant Class ---------------- Mutant | -10/Materials Mutant | -10/Mines Mutant | -9/Materials Mutant | -9/Mines Commander-Mutant | -9/Exiles Scavenger-Mutant | -8/Mines Mutant | -8/Materials Mutant | -8/Garrison Mutant | -8/Materials Skirmisher | -7/Factory Gunner | -7/Lower Caves Derelict-Tank | -7/Lower Caves Mutant | -7/Data Miner Mutant | -6/Proximity Caves Mutant | -6/Factory Hacker-Mutant | -5/Factory Hacker-Mutant | -4/Factory Hacker-Mutant | -3/Research Hacker-Mutant | -2/Research Mutant | -1/Access Resources | -11 -10 -10 -9 -9 -9 -8 -8 -8 -8 -7 -7 -7 -7 -6 -6 -5 -4 -3 -2 -1 ----------- Run | Yrd Mat Min Mat Min Exi Min Mat Gar Mat Fac Low Low Dat Pro Fac Fac Fac Res Res Acc Matter Collected 4430 | 195 85 30 149 175 . 148 286 445 933 774 214 688 268 10 . 30 . . . . Remotely 179 | . . . . . . . . . . . . 179 . . . . . . . . Salvage Created 5718 | . 147 212 464 304 . 132 588 601 1348 783 211 549 268 . . . 111 . . . Parts 319 | . 5 14 23 20 . 6 31 54 79 50 9 16 4 . . . 8 . . . Haulers Intercepted 8 | . 2 . 2 . . . . . 4 . . . . . . . . . . . Recyclers Shooed 2 | . . . 1 1 . . . . . . . . . . . . . . . . Parts Field Recycled . | . . . . . . . . . . . . . . . . . . . . . Retrieved Matter . | . . . . . . . . . . . . . . . . . . . . . Parts Self-Destructed 16 | . . . . . . . . . . . 7 9 . . . . . . . . Prevented 3 | . . . . . . . . . . . . 3 . . . . . . . . Kills | -11 -10 -10 -9 -9 -9 -8 -8 -8 -8 -7 -7 -7 -7 -6 -6 -5 -4 -3 -2 -1 ------- Run | Yrd Mat Min Mat Min Exi Min Mat Gar Mat Fac Low Low Dat Pro Fac Fac Fac Res Res Acc Combat Hostiles Destroyed 148 | . 3 9 6 8 . 3 12 22 27 24 9 17 4 . . . 4 . . . Melee 1 | . . . . . . . . . . 1 . . . . . . . . . . Guns 57 | . 3 9 5 8 . 3 11 4 9 4 . . . . . . 1 . . . Cannons 22 | . . . . . . . . 8 9 1 . 2 2 . . . . . . . AOE 64 | . . . . . . . 1 10 9 17 9 15 . . . . 3 . . . Classes Destroyed 16 | . 2 2 4 3 . . 1 1 2 1 . . . . . . . . . . Worker 4 | . . . . . . . . . 2 2 . . . . . . . . . . Builder 8 | . . . 1 . . . . . 2 5 . . . . . . . . . . Tunneler 2 | . . . . 2 . . . . . . . . . . . . . . . . Hauler 8 | . 2 . 2 . . . . . 4 . . . . . . . . . . . Recycler 6 | . . . . 1 . . 1 . 1 3 . . . . . . . . . . Mechanic 1 | . . . . . . . . . 1 . . . . . . . . . . . Watcher 5 | . . . 2 . . . 1 . 2 . . . . . . . . . . . Swarmer 54 | . 3 5 . 3 . . 3 11 3 17 . 5 . . . . 4 . . . Grunt 52 | . . 2 2 4 . 2 5 1 18 5 8 5 . . . . . . . . Brawler 7 | . . . 1 . . . . . . . . 6 . . . . . . . . Duelist 3 | . . . . 1 . 1 1 . . . . . . . . . . . . . Sentry 22 | . . . 3 . . . 2 9 5 1 . 2 . . . . . . . . Specialist 1 | . . . . . . . . 1 . . . . . . . . . . . . Hunter 3 | . . . . . . . 1 . 1 . 1 . . . . . . . . . Programmer 1 | . . . . . . . . . . 1 . . . . . . . . . . Enhanced Grunt 4 | . . . . . . . . . . . . . 4 . . . . . . . Assembled 2 | . . 2 . . . . . . . . . . . . . . . . . . Best Kill Streak 8 | . 3 3 3 4 . 2 8 7 6 8 4 7 1 . . . 4 . . . Combat Bots Only 8 | . 3 3 2 3 . 2 8 7 4 8 4 7 1 . . . 4 . . . Max Kills in Single Turn 6 | . 1 2 1 1 . 1 1 2 2 6 4 4 1 . . . 3 . . . Gunslinging 1 | . . 1 . . . . . . . . . . . . . . . . . . Exploded 4 | . . . . . . . 1 2 2 3 4 4 . . . . 3 . . . Melee 1 | . . . . . . . . . . 1 . . . . . . . . . . Uniques/NPCs Destroyed . | . . . . . . . . . . . . . . . . . . . . . Combat | -11 -10 -10 -9 -9 -9 -8 -8 -8 -8 -7 -7 -7 -7 -6 -6 -5 -4 -3 -2 -1 -------- Run | Yrd Mat Min Mat Min Exi Min Mat Gar Mat Fac Low Low Dat Pro Fac Fac Fac Res Res Acc Hostile Shots Fired 1044 | . 38 42 19 36 . 12 45 68 113 189 23 81 47 . 2 60 36 6 115 112 Missed 343 | . 9 13 5 7 . 3 7 22 42 58 6 35 9 . 2 26 8 2 50 39 Damage Taken 13175 | . 245 336 190 313 . 145 535 757 1197 1448 405 627 1851 . 2 1113 538 81 1548 1844 Core 5001 | . 37 64 . 10 . 33 18 130 157 143 33 45 367 . . 686 277 46 1350 1605 Absorbed by Shields . | . . . . . . . . . . . . . . . . . . . . . Core Remaining (%) 61 | 100 . 59 . . . 89 . . 44 . . . . 16 100 31 75 96 6 . Volleys Fired 354 | . 13 22 23 21 . 10 29 52 100 42 11 17 8 . . . 4 . . 2 Largest 4 | . 2 2 2 2 . 2 2 2 2 4 1 4 2 . . . 1 . . 1 Hottest 272 | . 112 112 90 46 . 46 48 117 117 132 39 272 117 . . . 35 . . 113 Shots Fired 675 | . 26 43 46 42 . 20 58 86 183 109 12 32 12 . . . 4 . . 2 Gun 487 | . 26 43 46 42 . 20 58 29 128 85 . 5 1 . . . 4 . . . Cannon 121 | . . . . . . . . 44 42 7 . 15 11 . . . . . . 2 Launcher 67 | . . . . . . . . 13 13 17 12 12 . . . . . . . . Special . | . . . . . . . . . . . . . . . . . . . . . Kinetic 453 | . . . 8 42 . 20 58 46 163 92 . 9 11 . . . 4 . . . Thermal 107 | . 26 35 6 . . . . 27 7 . . 4 . . . . . . . 2 Explosive 67 | . . . . . . . . 13 13 17 12 12 . . . . . . . . Electromagnetic 48 | . . 8 32 . . . . . . . . 7 1 . . . . . . . Robot Hit Streak 22 | . 4 4 11 22 . 13 11 16 15 10 7 5 6 . . . . . . . Robot Miss Streak 5 | . 5 2 2 1 . 1 3 3 5 5 1 4 1 . . . . . . . Penetration Max 1 | . . . . . . . . . . . . 1 . . . . . . . . Secondary Targets 2 | . . 1 . 1 . . . . . . . . . . . . . . . . Max Gunslinging Chain 1 | . . 1 . 1 . . . . . . . . . . . . . . . . Shots Hit Robots 447 | . 14 22 32 35 . 18 41 40 112 75 9 23 26 . . . . . . . Core Hits 305 | . 8 14 15 13 . 5 25 33 67 45 18 42 7 . 1 1 11 . . . Critical Kills 7 | . . . . . . . . . 3 2 . 1 . . . . 1 . . . Critical Parts Destroyed 7 | . . . . . . . . . . 2 . 1 4 . . . . . . . Critical Strikes 30 | . 3 4 3 . . . . . 8 4 . 2 5 . . . 1 . . . Burn 8 | . 3 4 1 . . . . . . . . . . . . . . . . . Destroy 9 | . . . . . . . . . 3 3 . 2 . . . . 1 . . . Blast 6 | . . . . . . . . . 5 . . . 1 . . . . . . . Corrupt 2 | . . . 2 . . . . . . . . . . . . . . . . . Smash 5 | . . . . . . . . . . 1 . . 4 . . . . . . . Melee Attacks 52 | . . . . . . . . 2 . 21 . . 29 . . . . . . . Impact 52 | . . . . . . . . 2 . 21 . . 29 . . . . . . . Slashing . | . . . . . . . . . . . . . . . . . . . . . Piercing . | . . . . . . . . . . . . . . . . . . . . . Sneak Attacks 3 | . . . . . . . . . . 2 . . 1 . . . . . . . Combat Hostiles . | . . . . . . . . . . . . . . . . . . . . . Follow-up Attacks . | . . . . . . . . . . . . . . . . . . . . . Damage Inflicted 16260 | . 236 371 626 618 . 277 660 1628 3501 3348 1103 2410 1151 . 5 36 248 . 30 12 Guns 5364 | . 219 338 466 569 . 277 653 292 1441 1009 . 64 6 . . . 30 . . . Cannons 2178 | . . . . . . . . 581 999 94 . 257 247 . . . . . . . Explosions 7080 | . . . 95 . . . . 755 1054 1685 1103 2089 81 . . . 218 . . . Melee 1377 | . . . . . . . . . . 560 . . 817 . . . . . . . Ramming 261 | . 17 33 65 49 . . 7 . 7 . . . . . 5 36 . . 30 12 Kinetic 5966 | . . . 75 569 . 277 653 522 2300 1103 . 190 247 . . . 30 . . . Thermal 1694 | . 219 283 183 . . . . 351 140 372 . 65 81 . . . . . . . Explosive 6278 | . . . . . . . . 755 1054 1313 1103 2053 . . . . . . . . Electromagnetic 684 | . . 55 303 . . . . . . . . 102 6 . . . 218 . . . Impact 1377 | . . . . . . . . . . 560 . . 817 . . . . . . . Slashing . | . . . . . . . . . . . . . . . . . . . . . Piercing . | . . . . . . . . . . . . . . . . . . . . . Highest Corruption 23 | . . . 2 2 2 2 1 1 1 5 5 8 23 23 . 3 . . . 8 Average Corruption 4 | . . . 2 2 2 2 1 1 1 4 5 7 19 23 . 2 . . . 6 Corruption Purged . | . . . . . . . . . . . . . . . . . . . . . Corruption Blocked . | . . . . . . . . . . . . . . . . . . . . . Effects 174 | . . . 13 23 11 8 2 13 7 9 8 18 52 4 . 5 . . . 1 Message Errors 46 | . . . 1 5 5 2 . 6 . 1 3 5 16 1 . 1 . . . . Matter Fused 40 | . . . 2 9 1 2 1 1 2 4 . 4 13 . . 1 . . . . Heat Flow Errors 20 | . . . 5 2 . 1 . 3 1 . 1 1 5 . . 1 . . . . Energy Discharges 20 | . . . 1 2 1 2 1 . 1 . 1 3 5 1 . 1 . . . 1 Parts Rejected 4 | . . . . . . . . 1 . 1 . . 2 . . . . . . . Data Loss (minor) 24 | . . . 2 4 3 . . 2 . 1 2 3 4 2 . 1 . . . . Data Loss (major) 12 | . . . 2 1 1 1 . . 1 . . 2 4 . . . . . . . Misfires 4 | . . . . . . . . . . . 1 . 3 . . . . . . . Alerts 1 | . . . . . . . . . 1 . . . . . . . . . . . Weapon Failures 3 | . . . . . . . . . 1 2 . . . . . . . . . . Overload Shots . | . . . . . . . . . . . . . . . . . . . . . Overflow Damage 731 | . . . 7 . . . . 15 11 342 . 55 301 . . . . . . . Projectiles 37 | . . . . . . . . . 11 7 . . 19 . . . . . . . Explosions 272 | . . . . . . . . 15 . 190 . 55 12 . . . . . . . Melee 422 | . . . 7 . . . . . . 145 . . 270 . . . . . . . Knockbacks 22 | . . . . 1 . . . 3 6 1 . . 9 . . 1 . . 1 . Impact 9 | . . . . 1 . . . . . 1 . . 5 . . 1 . . 1 . Kinetic 12 | . . . . . . . . 3 5 . . . 4 . . . . . . . Secondary 1 | . . . . . . . . . 1 . . . . . . . . . . . Self-Inflicted Damage 515 | . . . 4 . . . . 141 58 . 123 24 64 . 2 18 64 . 13 4 Shots 14 | . . . 1 . . . . 4 3 . 2 1 1 . . . 2 . . . Rammed 37 | . 3 4 4 5 . . . . 2 . . . . . 3 5 . . 7 4 Targets Rammed 43 | . 5 4 5 7 . . 1 . 2 . . . . . 3 5 . . 7 4 Kicked 2 | . 2 . . . . . . . . . . . . . . . . . . . Crushed 4 | . . . 1 2 . . 1 . . . . . . . . . . . . . Highest Temperature 396 | . 300 291 255 244 . 260 18 250 108 355 125 396 237 . . 104 . . . 16 Average Temperature 92 | . 113 112 72 103 . 89 18 79 24 153 39 114 80 . . 64 . . . 10 Received Heat Transfer 2189 | . . 140 75 111 . 81 126 225 567 240 108 165 . . . 141 39 18 90 63 Effects 7 | . . . . . . . . . . 3 . 4 . . . . . . . . Energy Bleed 3 | . . . . . . . . . . 2 . 1 . . . . . . . . Interference 4 | . . . . . . . . . . 1 . 3 . . . . . . . . Siege Activations . | . . . . . . . . . . . . . . . . . . . . . Robots Corrupted 1 | . . . 1 . . . . . . . . . . . . . . . . . Combat Hostiles 1 | . . . 1 . . . . . . . . . . . . . . . . . Parts Fried 6 | . . . 1 . . . . . . . . . 4 . . . 1 . . . Impact Corruptions 19 | . . 1 2 . . . . . . 6 . . 10 . . . . . . . Robots Melted . | . . . . . . . . . . . . . . . . . . . . . Combat Hostiles . | . . . . . . . . . . . . . . . . . . . . . Parts Melted 8 | . 2 3 1 . . . . 2 . . . . . . . . . . . . Heat Transferred 3449 | . 777 999 446 . . . . 555 222 300 . 100 50 . . . . . . . Parts Sabotaged . | . . . . . . . . . . . . . . . . . . . . . Parts Stolen . | . . . . . . . . . . . . . . . . . . . . . Parts Stripped . | . . . . . . . . . . . . . . . . . . . . . Power Chain Reactions 5 | . . . 2 . . . . . . . . . 1 . . . 2 . . . Latent Energy Used 78 | . . . . . . . . . . . . 78 . . . . . . . . LE Corruption 3 | . . . . . . . . . . . . 3 . . . . . . . . Alert | -11 -10 -10 -9 -9 -9 -8 -8 -8 -8 -7 -7 -7 -7 -6 -6 -5 -4 -3 -2 -1 ------- Run | Yrd Mat Min Mat Min Exi Min Mat Gar Mat Fac Low Low Dat Pro Fac Fac Fac Res Res Acc Peak Influence 1147 | . 116 185 137 120 . 200 254 1147 828 867 . . . . 108 256 501 317 400 294 Initial 559 | . . 5 . 30 . . 78 165 559 266 . . . . . 52 125 257 177 248 Average 256 | . 29 44 59 43 . 161 107 803 566 520 . . . . 36 122 333 270 243 248 Maximum Alert Level 4 | . . . . . . 1 1 4 3 3 . . . . . 1 2 1 2 1 Low Security (%) 61 | . 100 100 100 100 . 92 83 2 . . . . . . 100 80 39 . 44 . Level 1 10 | . . . . . . 7 16 12 . 31 . . . . . 19 . 100 54 100 Level 2 18 | . . . . . . . . 15 87 52 . . . . . . 61 . 1 . Level 3 7 | . . . . . . . . 49 12 15 . . . . . . . . . . Level 4 2 | . . . . . . . . 19 . . . . . . . . . . . . Level 5 . | . . . . . . . . . . . . . . . . . . . . . High Security . | . . . . . . . . . . . . . . . . . . . . . Max Security . | . . . . . . . . . . . . . . . . . . . . . Squads Dispatched 28 | . . . 1 . . . 1 . 5 6 . 1 . . 2 5 1 . 4 2 Investigation 9 | . . . 1 . . . . . 2 . . . . . 1 2 . . 2 1 Extermination 2 | . . . . . . . . . . 2 . . . . . . . . . . Reinforcement 12 | . . . . . . . 1 . 1 4 . . . . 1 2 . . 2 1 Assault 4 | . . . . . . . . . 1 . . 1 . . . 1 1 . . . Garrison 1 | . . . . . . . . . 1 . . . . . . . . . . . Intercept . | . . . . . . . . . . . . . . . . . . . . . Searches Triggered . | . . . . . . . . . . . . . . . . . . . . . Construction Impeded 2 | . . . . . . . . . . . . . . . . 1 . . 1 . Haulers Reinforced 1 | . . . . . . . . . . 1 . . . . . . . . . . Active Scanning Responses . | . . . . . . . . . . . . . . . . . . . . . Cargo Convoy Interrupts . | . . . . . . . . . . . . . . . . . . . . . Stealth | -11 -10 -10 -9 -9 -9 -8 -8 -8 -8 -7 -7 -7 -7 -6 -6 -5 -4 -3 -2 -1 --------- Run | Yrd Mat Min Mat Min Exi Min Mat Gar Mat Fac Low Low Dat Pro Fac Fac Fac Res Res Acc Distress Signals 11 | . . . 1 . . . 2 . 4 1 . . . . . 1 . 1 1 . Communications Jammed . | . . . . . . . . . . . . . . . . . . . . . Distress Signals . | . . . . . . . . . . . . . . . . . . . . . Times Spotted 290 | . 12 10 10 10 . 9 18 28 37 30 13 20 8 2 5 29 7 5 23 14 Peak Tracking Total 14 | . 3 3 2 3 . 3 11 4 4 6 4 7 2 2 4 14 4 5 12 11 Tactical Retreats 37 | . . 1 . 1 . . 1 . . 4 . . 11 . 2 6 1 2 5 3 Traps | -11 -10 -10 -9 -9 -9 -8 -8 -8 -8 -7 -7 -7 -7 -6 -6 -5 -4 -3 -2 -1 ------- Run | Yrd Mat Min Mat Min Exi Min Mat Gar Mat Fac Low Low Dat Pro Fac Fac Fac Res Res Acc Traps Triggered 14 | . . . 1 . . . 1 6 . 2 . . . . 1 2 . . . 1 Indirectly . | . . . . . . . . . . . . . . . . . . . . . Trap Hack Attempts . | . . . . . . . . . . . . . . . . . . . . . Triggered . | . . . . . . . . . . . . . . . . . . . . . Disarmed . | . . . . . . . . . . . . . . . . . . . . . Reprogrammed . | . . . . . . . . . . . . . . . . . . . . . Reused . | . . . . . . . . . . . . . . . . . . . . . Traps Extracted . | . . . . . . . . . . . . . . . . . . . . . Installed . | . . . . . . . . . . . . . . . . . . . . . Triggered . | . . . . . . . . . . . . . . . . . . . . . Machines | -11 -10 -10 -9 -9 -9 -8 -8 -8 -8 -7 -7 -7 -7 -6 -6 -5 -4 -3 -2 -1 ---------- Run | Yrd Mat Min Mat Min Exi Min Mat Gar Mat Fac Low Low Dat Pro Fac Fac Fac Res Res Acc Machines Disabled 24 | . . . 1 1 . . . 5 . 9 . 2 . . . . 6 . . . Max in Single Turn 5 | . . . 1 1 . . . 1 . 5 . 2 . . . . 5 . . . Garrison Access 2 | . . . . . . . . . . . . . . . . 1 1 . . . Garrison Relay 4 | . . . . . . . . 4 . . . . . . . . . . . . Machines Repaired . | . . . . . . . . . . . . . . . . . . . . . Machines Dismantled . | . . . . . . . . . . . . . . . . . . . . . Machines Sabotaged 1 | . . . . . . . . . . . . . . . . . . . 1 . Overloaded Fab Kills . | . . . . . . . . . . . . . . . . . . . . . Hacking | -11 -10 -10 -9 -9 -9 -8 -8 -8 -8 -7 -7 -7 -7 -6 -6 -5 -4 -3 -2 -1 --------- Run | Yrd Mat Min Mat Min Exi Min Mat Gar Mat Fac Low Low Dat Pro Fac Fac Fac Res Res Acc Machines Accessed 53 | . 5 . 5 . 1 . 4 5 7 5 . . 3 . 7 5 2 1 2 1 Terminals 43 | . 5 . 4 . . . 3 5 7 5 . . . . 6 3 1 1 2 1 Fabricators 4 | . . . . . . . . . . . . . . . 1 2 1 . . . Repair Stations . | . . . . . . . . . . . . . . . . . . . . . Recycling Units 1 | . . . 1 . . . . . . . . . . . . . . . . . Scanalyzers . | . . . . . . . . . . . . . . . . . . . . . Garrison Access 1 | . . . . . . . 1 . . . . . . . . . . . . . Total Hacks 156 | . 11 . 10 . 7 . 9 10 27 14 . . 25 . 17 15 4 1 4 2 Successful 85 | . 4 . 6 . 7 . 3 3 11 5 . . 25 . 5 8 4 1 3 . Failed 70 | . 7 . 3 . . . 6 7 16 9 . . . . 12 7 . . 1 2 Catastrophic 11 | . 1 . 1 . . . . 2 1 1 . . . . 1 1 . . 1 2 Database Lockouts 1 | . . . 1 . . . . . . . . . . . . . . . . . Manual 90 | . 11 . 9 . 1 . 8 . 22 9 . . . . 14 12 2 . 2 . Terminals 113 | . 11 . 9 . . . 8 10 27 14 . . . . 16 9 2 1 4 2 Fabricators 9 | . . . . . . . . . . . . . . . 1 6 2 . . . Repair Stations . | . . . . . . . . . . . . . . . . . . . . . Recycling Units 1 | . . . 1 . . . . . . . . . . . . . . . . . Scanalyzers . | . . . . . . . . . . . . . . . . . . . . . Garrison Access 1 | . . . . . . . 1 . . . . . . . . . . . . . Terminal Hacks 55 | . 2 . 3 . 7 . . 3 6 3 . . 25 . 2 1 1 1 1 . Record 13 | . . . . . 7 . . . . . . . 6 . . . . . . . Part Schematic 12 | . . . . . . . . . . . . . 10 . 1 1 . . . . Robot Schematic 6 | . . . . . . . . . . . . . 6 . . . . . . . Robot Analysis 2 | . 2 . . . . . . . . . . . . . . . . . . . Prototype ID Bank 6 | . . . 1 . . . . . 2 . . . 3 . . . . . . . Open Door 2 | . . . . . . . . 1 . . . . . . 1 . . . . . Open DSF 1 | . . . . . . . . . . . . . . . . . . 1 . . Level Access Points 2 | . . . . . . . . . . 1 . . . . . . . . 1 . Branch Access Points 2 | . . . 1 . . . . . . 1 . . . . . . . . . . Emergency Access Points 1 | . . . . . . . . 1 . . . . . . . . . . . . Terminal Index 1 | . . . . . . . . . . 1 . . . . . . . . . . Alert Level 2 | . . . 1 . . . . . . . . . . . . . 1 . . . Unreport Threat 3 | . . . . . . . . . 3 . . . . . . . . . . . Hauler Manifests 1 | . . . . . . . . . 1 . . . . . . . . . . . Garrison Registry 1 | . . . . . . . . 1 . . . . . . . . . . . . Fabricator Hacks 5 | . . . . . . . . . . . . . . . . 3 2 . . . Load Schematic 3 | . . . . . . . . . . . . . . . . 2 1 . . . Build 2 | . . . . . . . . . . . . . . . . 1 1 . . . Repair Station Hacks . | . . . . . . . . . . . . . . . . . . . . . Recycling Unit Hacks . | . . . . . . . . . . . . . . . . . . . . . Scanalyzer . | . . . . . . . . . . . . . . . . . . . . . Garrison Access Hacks 1 | . . . . . . . 1 . . . . . . . . . . . . . Unlock Access 1 | . . . . . . . 1 . . . . . . . . . . . . . Unauthorized Hacks 24 | . 2 . 3 . . . 2 . 5 2 . . . . 3 4 1 . 2 . Terminals 22 | . 2 . 2 . . . 2 . 5 2 . . . . 3 3 1 . 2 . Botnet 20 | . 2 . 2 . . . 2 . 5 2 . . . . 3 3 1 . . . Disrupt 1 | . . . . . . . . . . . . . . . . . . . 1 . Sabotage 1 | . . . . . . . . . . . . . . . . . . . 1 . Fabricators 1 | . . . . . . . . . . . . . . . . 1 . . . . Recompile 1 | . . . . . . . . . . . . . . . . 1 . . . . Repair Stations . | . . . . . . . . . . . . . . . . . . . . . Recycling Units 1 | . . . 1 . . . . . . . . . . . . . . . . . Tunnel 1 | . . . 1 . . . . . . . . . . . . . . . . . Scanalyzers . | . . . . . . . . . . . . . . . . . . . . . Garrison Access . | . . . . . . . . . . . . . . . . . . . . . Data Cores Recovered . | . . . . . . . . . . . . . . . . . . . . . Used . | . . . . . . . . . . . . . . . . . . . . . Hacking Detections 35 | . 5 . 3 . . . 3 3 6 5 . . . . 5 3 . . 1 1 Full Trace Events 7 | . . . . . . . . 1 2 . . . . . 1 1 . . 1 1 Feedback Events 1 | . . . . . . . . . . . . . . . . . . . . 1 Corruption 1 | . . . . . . . . . . . . . . . . . . . . 1 Feedback Blocked . | . . . . . . . . . . . . . . . . . . . . . Robot Schematics Acquired 6 | . . . . . . . . . . . . . 6 . . . . . . . Robots Built . | . . . . . . . . . . . . . . . . . . . . . Authchips . | . . . . . . . . . . . . . . . . . . . . . Time . | . . . . . . . . . . . . . . . . . . . . . Total Robot Build Rating . | . . . . . . . . . . . . . . . . . . . . . Part Schematics Acquired 12 | . . . . . . . . . . . . . 10 . 1 1 . . . . Parts Built 2 | . . . . . . . . . . . . . . . . 1 1 . . . Authchips 1 | . . . . . . . . . . . . . . . . . 1 . . . Time 148 | . . . . . . . . . . . . . . . . 95 53 . . . Total Part Build Rating 11 | . . . . . . . . . . . . . . . . 5 6 . . . Parts Repaired . | . . . . . . . . . . . . . . . . . . . . . Time . | . . . . . . . . . . . . . . . . . . . . . Parts Recycled . | . . . . . . . . . . . . . . . . . . . . . Recycled Matter . | . . . . . . . . . . . . . . . . . . . . . Retrieved Matter . | . . . . . . . . . . . . . . . . . . . . . Retrieved Components . | . . . . . . . . . . . . . . . . . . . . . Parts Scanalyzed . | . . . . . . . . . . . . . . . . . . . . . Part Schematics Acquired . | . . . . . . . . . . . . . . . . . . . . . Parts Damaged . | . . . . . . . . . . . . . . . . . . . . . Bothacking | -11 -10 -10 -9 -9 -9 -8 -8 -8 -8 -7 -7 -7 -7 -6 -6 -5 -4 -3 -2 -1 ------------ Run | Yrd Mat Min Mat Min Exi Min Mat Gar Mat Fac Low Low Dat Pro Fac Fac Fac Res Res Acc Used RIF Installer . | . . . . . . . . . . . . . . . . . . . . . Robots Hacked . | . . . . . . . . . . . . . . . . . . . . . Non-combat . | . . . . . . . . . . . . . . . . . . . . . Combat . | . . . . . . . . . . . . . . . . . . . . . Robot Hacks Applied . | . . . . . . . . . . . . . . . . . . . . . Relay Couplers Released 18 | . . . . . . . . 15 . . . . . . . 1 2 . . . Machine Destruction 18 | . . . . . . . . 15 . . . . . . . 1 2 . . . Fabnet Peak Effective % . | . . . . . . . . . . . . . . . . . . . . . Robots Rewired 4 | . . . . . 2 . . . . . . 2 . . . . . . . . Allies Hacked . | . . . . . . . . . . . . . . . . . . . . . Hacks Repelled . | . . . . . . . . . . . . . . . . . . . . . Allies | -11 -10 -10 -9 -9 -9 -8 -8 -8 -8 -7 -7 -7 -7 -6 -6 -5 -4 -3 -2 -1 -------- Run | Yrd Mat Min Mat Min Exi Min Mat Gar Mat Fac Low Low Dat Pro Fac Fac Fac Res Res Acc Total Allies 9 | . . . . 3 2 . . 2 . . . 2 . . . . . . . . Largest Group 5 | . . . . 3 5 4 1 2 . . . 2 1 . . . . . . . Highest-Rated Group 56 | . . . . 40 56 48 8 51 . . . 48 28 . . . . . . . Highest-Rated Ally 31 | . . . . 16 16 16 8 31 . . . 28 28 . . . . . . . Total Orders . | . . . . . . . . . . . . . . . . . . . . . Ally Attacks 71 | . . . . . . 32 4 24 . . . 10 1 . . . . . . . Total Damage 1127 | . . . . . . 309 42 360 . . . 389 27 . . . . . . . Kills 16 | . . . . . . 7 . 6 . . . 3 . . . . . . . . Allies Corrupted . | . . . . . . . . . . . . . . . . . . . . . Allies Melted . | . . . . . . . . . . . . . . . . . . . . . Intel | -11 -10 -10 -9 -9 -9 -8 -8 -8 -8 -7 -7 -7 -7 -6 -6 -5 -4 -3 -2 -1 ------- Run | Yrd Mat Min Mat Min Exi Min Mat Gar Mat Fac Low Low Dat Pro Fac Fac Fac Res Res Acc Robot Analysis Total 136 | . 2 . . . . . . . . . . . 134 . . . . . . . Derelict Logs Recovered 9 | . . 2 . 2 . . . . . . 2 . . 3 . . . . . . Drone Launches . | . . . . . . . . . . . . . . . . . . . . . Drone Recoveries . | . . . . . . . . . . . . . . . . . . . . . Exploration | -11 -10 -10 -9 -9 -9 -8 -8 -8 -8 -7 -7 -7 -7 -6 -6 -5 -4 -3 -2 -1 ------------- Run | Yrd Mat Min Mat Min Exi Min Mat Gar Mat Fac Low Low Dat Pro Fac Fac Fac Res Res Acc Turns Passed 13860 | . 972 1302 931 1477 1082 394 738 1071 1268 973 334 641 1181 99 187 528 200 158 150 174 Spaces Moved 7551 | 1 403 378 340 581 440 150 320 710 602 660 268 360 170 195 328 693 258 159 252 283 Core 2226 | . . . . . . . . . . . . . 58 195 328 693 258 159 252 283 Treads 2447 | . 229 378 340 581 440 150 141 . . . . 81 107 . . . . . . . Legs 180 | 1 174 . . . . . . . . . . . 5 . . . . . . . Wheels 2698 | . . . . . . . 179 710 602 660 268 279 . . . . . . . . Hover . | . . . . . . . . . . . . . . . . . . . . . Flight . | . . . . . . . . . . . . . . . . . . . . . Fastest Speed 50 | 120 120 320 240 240 240 240 115 115 130 115 115 115 50 50 50 50 50 100 50 50 Average Speed 158 | 120 218 320 240 240 240 240 170 118 145 117 115 154 624 50 50 50 73 100 55 53 Slowest Speed 1650 | 120 320 320 240 240 240 240 240 130 160 145 115 315 1650 50 50 50 100 100 100 200 Overloaded Moves . | . . . . . . . . . . . . . . . . . . . . . Propulsion Burnouts . | . . . . . . . . . . . . . . . . . . . . . Robots Hopped . | . . . . . . . . . . . . . . . . . . . . . Cave-ins Triggered . | . . . . . . . . . . . . . . . . . . . . . Exploration Rate (%) 44 | 2 74 78 39 87 90 46 31 78 57 28 57 64 81 37 12 27 10 6 14 9 Regions Visited 20 Branch Regions 8 Pre-discovered Areas 26 | . . 1 1 . 1 . . . . . 1 . 22 . . . . . . . Known Exits Taken 12 | . . . 1 . . . 1 . . 1 1 1 1 1 1 1 1 1 1 . Unknown Exits Taken 7 | 1 1 1 . 1 1 1 . . 1 . . . . . . . . . . . Scrap Searched 9 | . . 2 . 2 . . . . . . 2 2 . 1 . . . . . . Spaces Dug 46 | . . . . . . . . . . 27 . 18 . . . . . . . 1 Terrain Destroyed 490 | . . . 8 . . . . 35 94 98 146 99 1 . . . 7 . . 2 Melee 4 | . . . . . . . . . . 4 . . . . . . . . . . Projectile 29 | . . . . . . . . 1 17 3 . 4 1 . . . 1 . . 2 AOE 457 | . . . 8 . . . . 34 77 91 146 95 . . . . 6 . . . Terrain Rammed . | . . . . . . . . . . . . . . . . . . . . . Walls Destroyed . | . . . . . . . . . . . . . . . . . . . . . Machines Disabled . | . . . . . . . . . . . . . . . . . . . . . Actions | -11 -10 -10 -9 -9 -9 -8 -8 -8 -8 -7 -7 -7 -7 -6 -6 -5 -4 -3 -2 -1 --------- Run | Yrd Mat Min Mat Min Exi Min Mat Gar Mat Fac Low Low Dat Pro Fac Fac Fac Res Res Acc Total 8787 | . 465 420 404 616 472 164 460 849 845 772 280 412 229 195 348 872 263 158 260 303 Wait 440 | . 13 10 7 4 2 3 84 23 101 5 . 7 6 . . 168 . . . 7 Move 7532 | . 402 377 340 580 439 149 319 709 601 659 267 359 169 194 327 692 257 158 251 283 Hop . | . . . . . . . . . . . . . . . . . . . . . Pick Up 72 | . 13 3 12 2 5 . 7 5 10 8 2 2 2 . . 1 . . . . Fast Attach 39 | . 4 1 3 . 3 . 3 1 2 4 . 1 4 1 3 3 2 . 2 2 Attach 45 | . 2 2 5 . 1 . 3 2 4 8 . 7 7 . . 2 . . . 2 Detach 7 | . . . . . . . . . 1 . . . 3 . . . . . . 3 Swap 58 | . 3 . 4 . . 2 3 10 12 15 . 9 . . . . . . . . Drop 69 | . 10 1 6 2 10 . 11 5 12 10 . . 1 . . 1 . . . . Fire 354 | . 13 22 23 21 . 10 29 52 100 42 11 17 8 . . . 4 . . 2 Melee 52 | . . . . . . . . 2 . 21 . . 29 . . . . . . . Ram 21 | . . . . . . . . . 2 . . . . . 3 5 . . 7 4 Kick 2 | . 2 . . . . . . . . . . . . . . . . . . . Crush 19 | . 3 4 4 7 . . 1 . . . . . . . . . . . . . Escape Stasis 55 | . . . . . . . . 40 . . . . . . 15 . . . . . Rewire 22 | . . . . . 12 . . . . . . 10 . . . . . . . . Trap . | . . . . . . . . . . . . . . . . . . . . . Miscellaneous . | . . . . . . . . . . . . . . . . . . . . . Route ------- -11/Scrapyard -10/Materials (discovered 2 exits: *Mat / [*Min]) -10/Mines -9/Materials (discovered 3 exits: *Mat / *Min x2) -9/Mines (discovered 2 exits: *Mat / *Exi) -9/Exiles -8/Mines -8/Materials -8/Garrison (discovered 4 exits: *Mat x4) -8/Materials (discovered 2 exits: *Fac x2) -7/Factory (discovered 7 exits: *Fac x4 / Sto / *Low x2) -7/Lower Caves -7/Lower Caves (discovered 2 exits: *Fac / *Dat) -7/Data Miner -6/Proximity Caves -6/Factory (discovered 4 exits: *Fac x2 / *Ext x2) -5/Factory -4/Factory -3/Research -2/Research (discovered 3 exits: *Acc x3) -1/Access History --------- Turn | Location | Event 1 | -11/Scrapyard | Discovered new exit (range 0) 1 | -11/Scrapyard | Entered Materials 245 | -10/Materials | Discovered new exit (range 13) 305 | -10/Materials | Build established: Mutant 944 | -10/Materials | Discovered new exit (range 9) 973 | -10/Materials | Entered Mines 1015 | -10/Mines | Met a Derelict bent on vengeance 1295 | -10/Mines | Learned location of Zion (-6) 1622 | -10/Mines | Received a Rocket Launcher from a helpful Derelict 1854 | -10/Mines | Assembled infested the area 1859 | -10/Mines | Assisted by a Guerilla fighting off Assembled 2227 | -10/Mines | Discovered new exit (range 15) 2275 | -10/Mines | Entered Materials 2275 | -9/Materials | Evolved 2 slots: Propulsion x2 2494 | -9/Materials | Central database locked down 2697 | -9/Materials | Discovered new exit (range 11) 2956 | -9/Materials | Identified exit to Mines 3206 | -9/Materials | Entered Mines 3223 | -9/Mines | A weapon hastily lodged in a ceiling crevice suddenly fell to the ground 3296 | -9/Mines | Learned Materials emergency access door positions 4059 | -9/Mines | Discovered new exit (range 15) 4095 | -9/Mines | Assisted by bots powering up and referring to "LRC-V3" 4174 | -9/Mines | Learned 2 Materials zone layouts 4472 | -9/Mines | Found a hidden stash of uninstalled traps 4673 | -9/Mines | Deemed a non-threat by the Exiles lab entrance 4673 | -9/Mines | Discovered new exit (range 5) 4683 | -9/Mines | Entered Exiles 4683 | -9/Exiles | Found Exiles lab destroyed 4683 | -9/Exiles | Accompanied by 3 allies 4933 | -9/Exiles | Opened EX-Vault 4943 | -9/Exiles | Found Prototype Energy Cannon 4943 | -9/Exiles | Identified Latent Energy Streamer 5069 | -9/Exiles | Build established: Commander-Mutant 5734 | -9/Exiles | Discovered new exit (range 14) 5765 | -9/Exiles | Entered Mines 5765 | -8/Mines | Accompanied by 5 allies 6111 | -8/Mines | Discovered new exit (range 12) 6159 | -8/Mines | Build established: Scavenger-Mutant 6159 | -8/Mines | Entered Materials 6159 | -8/Materials | Accompanied by 1 ally 6159 | -8/Materials | Evolved 2 slots: Utility x2 6695 | -8/Materials | Build established: Mutant 6794 | -8/Materials | Destroyed 8 combat bots 6896 | -8/Materials | Identified exit to Garrison 6897 | -8/Materials | Entered Garrison 6902 | -8/Garrison | Triggered checkpoint 7046 | -8/Garrison | Rescued a captive Derelict 7054 | -8/Garrison | Rescued a captive Derelict 7062 | -8/Garrison | Garrison Relay disabled 7174 | -8/Garrison | Destroyed 7 combat bots 7185 | -8/Garrison | Discovered new exit (range 34) 7185 | -8/Garrison | Discovered new exit (range 71) 7185 | -8/Garrison | Discovered new exit (range 48) 7185 | -8/Garrison | Discovered new exit (range 35) 7204 | -8/Garrison | Triggered checkpoint 7226 | -8/Garrison | Garrison Relay disabled 7383 | -8/Garrison | Triggered checkpoint 7424 | -8/Garrison | Triggered checkpoint 7492 | -8/Garrison | Triggered checkpoint 7519 | -8/Garrison | Garrison Relay disabled 7590 | -8/Garrison | Triggered checkpoint 7722 | -8/Garrison | Triggered checkpoint 7754 | -8/Garrison | Garrison Relay disabled 7968 | -8/Garrison | Entered Materials 8242 | -8/Materials | Discovered new exit (range 10) 8708 | -8/Materials | Discovered new exit (range 8) 9057 | -8/Materials | Garrison activated, responded to threat 9136 | -8/Materials | Core integrity fell below 50% 9168 | -8/Materials | First assault squad dispatched 9236 | -8/Materials | Entered Factory 9236 | -7/Factory | Evolved 2 slots: Weapon x2 9237 | -7/Factory | Identified exit to Storage 9484 | -7/Factory | Identified exit to Factory 9706 | -7/Factory | Build established: Skirmisher 9896 | -7/Factory | Lost 3 parts (1p2w) 9934 | -7/Factory | Identified exit to Lower Caves 10183 | -7/Factory | Destroyed 8 combat bots 10209 | -7/Factory | Entered Lower Caves 10230 | -7/Lower Caves | Met a Warlord Commander 10231 | -7/Lower Caves | Learned location of Warlord (-4) 10232 | -7/Lower Caves | Warlord Commander delivered Encrypted Comm Array 10240 | -7/Lower Caves | Found Encrypted Comm Array 10316 | -7/Lower Caves | Learned location of 2 exits from Factory 10500 | -7/Lower Caves | Discovered new exit (range 10) 10520 | -7/Lower Caves | Learned location of 1 exit from Factory 10542 | -7/Lower Caves | Identified exit to Lower Caves 10543 | -7/Lower Caves | Entered another Lower Caves area 10545 | -7/Lower Caves | Attracted the attention of an 0b10 checkpoint 10622 | -7/Lower Caves | Discovered exit to Factory (range 14) 10915 | -7/Lower Caves | Attracted the attention of an 0b10 outpost 10966 | -7/Lower Caves | Destroyed 7 combat bots 10969 | -7/Lower Caves | Lost 5 parts (1p2n2w) 10993 | -7/Lower Caves | Build established: Derelict-Tank 11173 | -7/Lower Caves | Discovered new exit (range 6) 11182 | -7/Lower Caves | Identified exit to Data Miner 11184 | -7/Lower Caves | Entered Data Miner 11184 | -7/Data Miner | Accompanied by 1 ally 11184 | -7/Data Miner | Discovered new exit (range 6) 11194 | -7/Data Miner | Identified exit to Proximity Caves 11232 | -7/Data Miner | Met Data Miner 11318 | -7/Data Miner | Learned location of Section 7 (-3) 11318 | -7/Data Miner | Acquired the access code to Warlord's prototype stash 11341 | -7/Data Miner | Received God Mode back door access code from Data Miner 11363 | -7/Data Miner | Interfaced with the Data Conduit 11492 | -7/Data Miner | System corruption reached 10% 11525 | -7/Data Miner | Core integrity fell below 50% 11597 | -7/Data Miner | Core integrity fell below 20% 11638 | -7/Data Miner | Lost 6 parts (1p2n3w) 11886 | -7/Data Miner | Build established: Mutant 12361 | -7/Data Miner | Released all parts (5) 12365 | -7/Data Miner | Entered Proximity Caves 12426 | -6/Proximity Caves | Learned 4 Factory zone layouts 12452 | -6/Proximity Caves | Learned Factory emergency access door positions 12457 | -6/Proximity Caves | Discovered exit to Factory (range 9) 12459 | -6/Proximity Caves | Learned Factory interactive machine intel 12464 | -6/Proximity Caves | Entered Factory 12464 | -6/Factory | Evolved 2 slots: Utility x2 12465 | -6/Factory | Identified exit to Factory 12465 | -6/Factory | Identified exit to Extension 12468 | -6/Factory | Loaded intel: 216 machine locations 12469 | -6/Factory | Loaded intel: 53 interactive machine locations 12560 | -6/Factory | Discovered exit to Extension (range 6) 12651 | -6/Factory | Entered another Factory area 12651 | -5/Factory | Evolved 2 slots: Propulsion x2 12652 | -5/Factory | Loaded intel: 296 machine locations 12802 | -5/Factory | Fabricated Imp. Hacking Suite? 13060 | -5/Factory | Spotted B-75 Beast 13100 | -5/Factory | Core integrity fell below 50% 13171 | -5/Factory | Discovered new exit (range 16) 13178 | -5/Factory | Identified exit to Factory 13179 | -5/Factory | Entered another Factory area 13179 | -4/Factory | Evolved 2 slots: Propulsion x2 13180 | -4/Factory | Loaded intel: 299 machine locations 13196 | -4/Factory | Build established: Hacker-Mutant 13281 | -4/Factory | Fabricated Adv. Hacking Suite? 13370 | -4/Factory | Discovered new exit (range 9) 13378 | -4/Factory | Identified exit to Research 13379 | -4/Factory | Entered Research 13379 | -3/Research | Evolved 2 slots: Propulsion x2 13380 | -3/Research | Loaded intel: 127 machine locations 13533 | -3/Research | Discovered new exit (range 4) 13536 | -3/Research | Identified exit to Research 13537 | -3/Research | Entered another Research area 13537 | -2/Research | Evolved 2 slots: Propulsion x2 13538 | -2/Research | Loaded intel: 118 machine locations 13609 | -2/Research | Identified exit to Access 13617 | -2/Research | Spotted B-90 Cyclops 13624 | -2/Research | Core integrity fell below 50% 13634 | -2/Research | Lost 3 parts (2u1w) 13667 | -2/Research | Core integrity fell below 20% 13687 | -2/Research | Entered Access 13687 | -1/Access | Evolved 2 slots: Utility x2 13688 | -1/Access | Loaded intel: 98 machine locations 13752 | -1/Access | Spotted B-99 Colossus 13752 | -1/Access | Spotted B-99 Colossus 13852 | -1/Access | Core integrity fell below 50% 13857 | -1/Access | Core integrity fell below 20% 13861 | -1/Access | Destroyed by G-73 Enforcer with Heavy Laser Last Messages --------------- 13805_ U-05 Engineer lays Concrete. 13813_ Connecting with Terminal... Feedback: System corruption (+1%). 13813_ ALERT: Suspicious activity at Terminal A001. Dispatching Investigation squad. 13825_ Terminal disabled. 13831_ ALERT: Security rotation in progress. 13842_ ALERT: Suspicious intruders detected, dispatching Cutter reinforcements to area. 13849_ System corrupted: Energy discharge (-37). 13849_ Door malfunctions. 13850_ Knocked back. 13853_ Slammed into C-57 Dissector. 13853_ Penetrated by Slug. 13853_ Slug penetrates G-73 Enforcer. 13855_ Slammed into G-73 Enforcer. 13856_ Penetrated by Slug. 13859_ P-80 Master resets G-73 Enforcer, system corruption cleaned. 13860_ Penetrated by Slug. 13860_ Slug penetrates Wall. Map ----- +----------------------------------------------------+ | ??????? #?????????????????????????????"T?????? | | ??????? ?????????????????????????????""?????? | | ??????? ????????????????????????????????????? | | ??????? #????????????????????????????????????? | | ???????# #??????? ???????????????????????????? | | ???????# #??????? ???????????????????????????? | | ???????# #??????? ???????????????????????????? | | ???????# #??????# +????"""""""???????????????? | | ???????# #""????# #????"""Y"""???????????????? | | ???????# #""????# #??????????????????????????? | | ######## #G?????# #??????????????????????????? | | ## #""????# #??????????????????????????? | | ## #""????# #??????????????????????????? | | "" #??????# #??????????????????????????? | | ## #??????+ #??????????????????????????? | | ## #??????# #??????????????????????????? | | """" ## ##?????# #??????????????????????????? | | """" # ####### ########??????#######??????? | | """" # #???? ??????? | | """" # #?? ?????? | | """" # ############## # ?????? | | ######????????????# + ?????? | | #?????????????????# # """ """??????????? | | #?????????????????# #??"""T"""??????????? | | #######?????????????????# #????##?????????????? | | ????????????????????????#@ #???????????????????? | | ?????????????????"####### #???????????????????? | | ????""""?????????" #???????????????????? | | ????""""?????????" #???????????????????? | | """"?""""""??" t#???????????????????? | | """"?"????"??" hc #???????????????????? | | """"?"?"??"??" h #???????????????????? | | """"?"?""?"??" #???????????????????? | | """"?"????"??" g #???????????????????? | | """"?""""""??" g #???????????????????? | | """"?????????"""" " " g#???????????????????? | | """"?????????""""T"""g #???????????????????? | | ####?????????????"####### #???????????????????? | | ????????????????????????# #???????????????????? | | ????????????????????????# #????????###########? | | ""T"""??????????????????# #????????# #? | | ""?"""??????????????????# #??####### #? | | ?????????????#####??????# #### # #? | | ?????????????# #######H % # #? | | ?????????????# / #? | | ?????????????# # #? | | ?????????????# ###+######### # #? | | ?????????????## #?# ??????### ### #? | | ??????????????# ??# ???????# #?###########? | | ??????????????# ???# ??????# #????????????? | +----------------------------------------------------+ Best States ------------- Heat Dissipation 52 Energy Generation 19 Energy Capacity 315 Matter Stores 500 Matter Capacity 500 Sight Range 18 Robot Scan Range 15 Terrain Scan Density 10 Corruption Containment 24 Armor Coverage 375 Power Shielding 33 Evasion (%) 55 Targeting Accuracy 6 Core Analysis 6 Recoil Reduction 4 Offensive Hacking 36 Authchip Count 1 Item Schematics ----------------- Combat Drone Bay | -7/Data Miner | Free Lgt. Regenerative Plating | -7/Data Miner | Free Biomechanical Wings | -7/Data Miner | Free Exp. Targeting Computer | -7/Data Miner | Free Cld. Plasma Cannon | -7/Data Miner | Free Hvy. Treads | -7/Data Miner | Free Adv. System Restoration Module | -7/Data Miner | Free Recoil Nullifier | -7/Data Miner | Free Disruptor Cannon | -7/Data Miner | Free Impulse Thruster | -7/Data Miner | Free Imp. Hacking Suite | -6/Factory | Hacked Adv. Hacking Suite | -5/Factory | Hacked Robot Schematics ------------------ G-47 Trooper | -7/Data Miner | Free M-28 Smith | -7/Data Miner | Free G-50 Soldier | -7/Data Miner | Free X-62 Marksman | -7/Data Miner | Free B-60 Warrior | -7/Data Miner | Free S-27 Virus | -7/Data Miner | Free Fabricated ------------ Imp. Hacking Suite | x1 | -5/Factory Adv. Hacking Suite | x1 | -4/Factory | Authchip Alien Tech Used ----------------- None Achievements -------------- Unlimited Data Challenges ------------ None Game ------ Seed HypercooledIntegratedSpecial Manual? 0 Play Time 01:17:34 Cumulative 180.6 hours Start 2024.04.05 @ 19:25:56 End 2024.04.05 @ 22:46:40 Sessions 3 Manual Loads 0 Difficulty Rogue Special Mode None Game No. 244 Rogue 244 Adventurer 0 Explorer 0 Win Type - Total 4 Types 2/1/0/1/0/0/0/0/0 Lore% 65 Gallery% 75 Achievement% 66 Wizard Run 0 Options --------- Layout 0 ASCII 0 Keyboard 0 Movement Numpad Keybinds 0 Fullscreen 1 Font 18/SmallcapsGlow Map View 76x50 Zoom Use 0% Tactical HUD 1 Map Filters NONE Filters NONE Steam 1 RUN: 982cce09-f7ff-4ff9-ad30-409dc5eff6cf